Cogmind - Beta 10.2 @@@ ROGUE MODE // 2021.03.07 @ 11:20:55 Player: MoonDog Result: Self-destructed Performance ------------- Evolutions (1) 500 Regions Visited (3) 600 Robots Destroyed (8) 40 Value Destroyed (95) 95 Prototype IDs (1) 20 Alien Tech Used (0) 0 Bonus (25) 25 TOTAL SCORE: 1280 Bonus ------- Follower Combat Kills 25 Cogmind --------- Core Integrity 386/400 Matter 285/300 Energy 280/280 System Corruption 0% Temperature Cool (0) Movement Rolling (90) Ox1 Location -9/Materials Parts ------- > --- POWER (1) -------- Heavy Ion Engine > --- PROPULSION (2) --- Wheel Wheel > --- UTILITY (4) ------ Large Storage Unit Targeting Computer > --- WEAPON (2) ------- (None) > --- INVENTORY (10) --- Light Angular Momentum Engine Flight Unit Flight Unit Small Storage Unit Improved Signal Interpreter Tractor Beam Peak State ------------ > --- POWER ------------ Light Angular Momentum Engine > --- PROPULSION ------- Wheel Wheel > --- UTILITY ---------- Small Storage Unit Large Storage Unit Targeting Computer > --- WEAPON ----------- Mining Laser > --- INVENTORY -------- Ion Engine Flight Unit Flight Unit Improved Signal Interpreter Tractor Beam [Rating: 11] Favorites ----------- Power Ion Engine Engine Ion Engine Propulsion Flight Unit Wheel Wheel Flight Unit Flight Unit Utility Targeting Computer Device Tractor Beam Storage Small Storage Unit Processor Targeting Computer Weapon EM Pulse Gun Energy Gun EM Pulse Gun Special Weapon Mining Laser Build | -11 -10 -10 -9 ------- Run | Scr Mat Min Mat Slots Evolved 2 | . . . 2 Power . | . . . . Propulsion . | . . . . Utility 2 | . . . 2 Weapon . | . . . . Parts Attached 20 | 4 4 10 2 Power 3 | . 1 1 1 Engine 3 | . 1 1 1 Core . | . . . . Reactor . | . . . . Propulsion 8 | 2 2 4 . Treads . | . . . . Leg . | . . . . Wheel 4 | 2 . 2 . Hover . | . . . . Flight 4 | . 2 2 . Utility 4 | 1 1 1 1 Device 1 | 1 . . . Storage 2 | . . 1 1 Processor 1 | . 1 . . Hackware . | . . . . Protection . | . . . . Artifact . | . . . . Weapon 5 | 1 . 4 . Energy Gun 2 | 1 . 1 . Energy Cannon . | . . . . Ballistic Gun . | . . . . Ballistic Cannon . | . . . . Launcher . | . . . . Special Weapon 3 | . . 3 . Impact Weapon . | . . . . Slashing Weapon . | . . . . Piercing Weapon . | . . . . Special Melee Weapon . | . . . . Unidentified Prototypes 1 | . . . 1 Parts Lost 5 | . . 4 1 Power . | . . . . Propulsion 2 | . . 2 . Utility . | . . . . Weapon 3 | . . 2 1 Highest Loss Streak 4 | . . 4 1 Average Slot Usage (%) 75 | . 71 80 64 Engine 11 | . 2 13 11 Wheel 6 | . 9 1 22 Flight 19 | . 18 24 . Device 3 | . 14 3 . Storage 9 | . . 10 11 Processor 13 | . 11 14 11 Energy Gun 7 | . 14 8 . Special Weapon 3 | . . 2 9 Naked Turns . | . . . . Heaviest Build 26 | 3 8 14 26 Greatest Support 20 | 3 8 20 20 Greatest Overweight (x) 2 | . . 2 1 Average Overweight (x) . | . . . . Largest Inventory Capacity 12 | 4 4 6 12 Average Capacity 5 | 4 4 5 9 Most Carried 6 | 2 4 6 6 Average Carried 4 | 1 3 4 5 Final Capacity 10 | 4 4 6 10 Final Carried 6 | 2 4 5 6 Class Distribution -------------------- 100% | Mutant Dominant Class ---------------- Mutant | -10/Materials Mutant | -10/Mines Mutant | -9/Materials Resources | -11 -10 -10 -9 ----------- Run | Scr Mat Min Mat Matter Collected 365 | 240 20 105 . Remotely 68 | 48 20 . . Salvage Created 268 | 85 20 163 . Parts 16 | 5 3 8 . Haulers Intercepted . | . . . . Recyclers Shooed . | . . . . Parts Field Recycled . | . . . . Retrieved Matter . | . . . . Parts Self-Destructed . | . . . . Prevented . | . . . . Kills | -11 -10 -10 -9 ------- Run | Scr Mat Min Mat Combat Hostiles Destroyed 1 | . . 1 . Cannons 1 | . . 1 . Classes Destroyed 6 | 2 1 3 . Worker 1 | . . 1 . Builder 1 | . . 1 . Tunneler 2 | 1 . 1 . Recycler 2 | 1 . 1 . Operator 1 | . 1 . . Grunt 1 | . . 1 . Best Kill Streak 3 | 2 3 3 . Combat Bots Only 1 | . . 1 . Max Kills in Single Turn 1 | 1 1 1 . Gunslinging . | . . . . Exploded . | . . . . Melee . | . . . . Uniques/NPCs Destroyed . | . . . . Combat | -11 -10 -10 -9 -------- Run | Scr Mat Min Mat Damage Taken 250 | . 11 197 42 Core 31 | . . 17 14 Absorbed by Shields . | . . . . Core Remaining (%) 96 | 100 . 93 . Volleys Fired 24 | 5 1 17 1 Largest 1 | 1 1 1 1 Hottest 100 | 40 40 100 100 Shots Fired 24 | 5 1 17 1 Gun 18 | 5 1 12 . Cannon . | . . . . Launcher . | . . . . Special 6 | . . 5 1 Kinetic . | . . . . Thermal 6 | . . 5 1 Explosive . | . . . . Electromagnetic 18 | 5 1 12 . Robot Hit Streak 5 | 1 . 5 . Robot Miss Streak 2 | 2 1 2 . Penetration Max . | . . . . Secondary Targets . | . . . . Shots Hit Robots 15 | 2 . 13 . Core Hits 9 | 2 1 6 . Critical Hits . | . . . . Critical Kills . | . . . . Critical Parts Destroyed . | . . . . Melee Attacks . | . . . . Impact . | . . . . Slashing . | . . . . Piercing . | . . . . Sneak Attacks . | . . . . Combat Hostiles . | . . . . Follow-up Attacks . | . . . . Damage Inflicted 306 | 27 15 264 . Guns 147 | 27 15 105 . Cannons . | . . . . Explosions 102 | . . 102 . Melee . | . . . . Ramming . | . . . . Kinetic . | . . . . Thermal 159 | . . 159 . Explosive . | . . . . Electromagnetic 147 | 27 15 105 . Impact . | . . . . Slashing . | . . . . Piercing . | . . . . Highest Corruption . | . . . . Average Corruption . | . . . . Corruption Purged . | . . . . Overload Shots . | . . . . Overflow Damage 24 | . . 24 . Projectiles . | . . . . Explosions 24 | . . 24 . Melee . | . . . . Knockbacks . | . . . . Impact . | . . . . Kinetic . | . . . . Secondary . | . . . . Self-Inflicted Damage 73 | . . 73 . Shots 2 | . . 2 . Rammed . | . . . . Targets Rammed . | . . . . Kicked . | . . . . Crushed . | . . . . Highest Temperature 66 | . . 66 12 Average Temperature 14 | . . 15 7 Received Heat Transfer 78 | . 6 72 . Siege Activations . | . . . . Robots Corrupted . | . . . . Combat Hostiles . | . . . . Parts Fried 1 | . 1 . . Impact Corruptions . | . . . . Robots Melted . | . . . . Combat Hostiles . | . . . . Parts Melted 1 | . . 1 . Heat Transferred 325 | . . 325 . Parts Sabotaged . | . . . . Parts Stolen . | . . . . Parts Stripped . | . . . . Power Chain Reactions 2 | . . 2 . Missiles Intercepted . | . . . . Alert | -11 -10 -10 -9 ------- Run | Scr Mat Min Mat Peak Influence 46 | 10 26 46 11 Initial 15 | . 6 15 11 Average 16 | 3 24 18 10 Maximum Alert Level . | . . . . Low Security (%) 100 | 100 100 100 100 Level 1 . | . . . . Level 2 . | . . . . Level 3 . | . . . . Level 4 . | . . . . Level 5 . | . . . . High Security . | . . . . Max Security . | . . . . Squads Dispatched 3 | . 2 . 1 Investigation 2 | . 1 . 1 Extermination . | . . . . Reinforcement 1 | . 1 . . Assault . | . . . . Garrison . | . . . . Intercept . | . . . . Construction Impeded . | . . . . Haulers Reinforced . | . . . . Stealth | -11 -10 -10 -9 --------- Run | Scr Mat Min Mat Distress Signals . | . . . . Communications Jammed . | . . . . Distress Signals . | . . . . Times Spotted 12 | . 5 2 5 Peak Tracking Total 5 | . 5 2 5 Tactical Retreats 1 | . 1 . . Traps | -11 -10 -10 -9 ------- Run | Scr Mat Min Mat Traps Triggered . | . . . . Indirectly . | . . . . Trap Hack Attempts . | . . . . Triggered . | . . . . Disarmed . | . . . . Reprogrammed . | . . . . Reused . | . . . . Traps Extracted . | . . . . Installed . | . . . . Triggered . | . . . . Machines | -11 -10 -10 -9 ---------- Run | Scr Mat Min Mat Machines Disabled . | . . . . Max in Single Turn . | . . . . Machines Sabotaged . | . . . . Garrisons Compromised . | . . . . Overloaded Fab Kills . | . . . . Fab Network Shutdowns . | . . . . Hacking | -11 -10 -10 -9 --------- Run | Scr Mat Min Mat Machines Accessed 4 | . 3 . 1 Terminals 4 | . 3 . 1 Fabricators . | . . . . Repair Stations . | . . . . Recycling Units . | . . . . Scanalyzers . | . . . . Garrison Access . | . . . . Total Hacks 10 | . 8 . 2 Successful 2 | . 2 . . Failed 8 | . 6 . 2 Catastrophic . | . . . . Database Lockouts . | . . . . Manual 10 | . 8 . 2 Terminals 10 | . 8 . 2 Fabricators . | . . . . Repair Stations . | . . . . Recycling Units . | . . . . Scanalyzers . | . . . . Garrison Access . | . . . . Terminal Hacks . | . . . . Fabricator Hacks . | . . . . Repair Station Hacks . | . . . . Recycling Unit Hacks . | . . . . Scanalyzer . | . . . . Garrison Access Hacks . | . . . . Unauthorized Hacks 2 | . 2 . . Terminals 2 | . 2 . . Botnet 2 | . 2 . . Fabricators . | . . . . Repair Stations . | . . . . Recycling Units . | . . . . Scanalyzers . | . . . . Garrison Access . | . . . . Data Cores Recovered . | . . . . Used . | . . . . Hacking Detections 4 | . 3 . 1 Full Trace Events 2 | . 1 . 1 Feedback Events . | . . . . Feedback Blocked . | . . . . Robot Schematics Acquired . | . . . . Robots Built . | . . . . Matter . | . . . . Time . | . . . . Total Robot Build Rating . | . . . . Part Schematics Acquired . | . . . . Parts Built . | . . . . Matter . | . . . . Time . | . . . . Total Part Build Rating . | . . . . Parts Repaired . | . . . . Time . | . . . . Parts Recycled . | . . . . Recycled Matter . | . . . . Retrieved Matter . | . . . . Retrieved Components . | . . . . Parts Scanalyzed . | . . . . Part Schematics Acquired . | . . . . Parts Damaged . | . . . . Bothacking | -11 -10 -10 -9 ------------ Run | Scr Mat Min Mat Used RIF Installer . | . . . . Robots Hacked . | . . . . Non-combat . | . . . . Combat . | . . . . Robot Hacks Applied . | . . . . Relay Couplers Released . | . . . . Robots Rewired . | . . . . Allies Hacked . | . . . . Hacks Repelled . | . . . . Allies | -11 -10 -10 -9 -------- Run | Scr Mat Min Mat Total Allies 1 | . . 1 . Largest Group 1 | . . 1 . Highest-Rated Group 31 | . . 31 . Highest-Rated Ally 31 | . . 31 . Total Orders . | . . . . Ally Attacks 4 | . . 4 . Total Damage 63 | . . 63 . Kills 1 | . . 1 . Allies Corrupted . | . . . . Allies Melted . | . . . . Intel | -11 -10 -10 -9 ------- Run | Scr Mat Min Mat Robot Analysis Total . | . . . . Derelict Logs Recovered . | . . . . Drone Launches . | . . . . Drone Recoveries . | . . . . Exploration | -11 -10 -10 -9 ------------- Run | Scr Mat Min Mat Turns Passed 500 | 41 60 311 88 Spaces Moved 545 | 46 97 321 81 Core 136 | 46 90 . . Treads . | . . . . Legs . | . . . . Wheels 100 | . . 19 81 Hover . | . . . . Flight 309 | . 7 302 . Fastest Speed 37 | 50 37 37 80 Average Speed 70 | 50 49 75 88 Slowest Speed 200 | 50 50 200 90 Overloaded Moves . | . . . . Propulsion Burnouts . | . . . . Robots Hopped 1 | . . 1 . Cave-ins Triggered . | . . . . Exploration Rate (%) 22 | 4 16 58 13 Regions Visited 3 Branch Regions 1 Pre-discovered Areas . | . . . . Known Exits Taken . | . . . . Unknown Exits Taken 3 | 1 1 1 . Scrap Searched . | . . . . Spaces Dug 1 | . . . 1 Terrain Destroyed 11 | . . 10 1 Melee . | . . . . Projectile 1 | . . . 1 AOE 10 | . . 10 . Terrain Rammed . | . . . . Walls Destroyed . | . . . . Machines Disabled . | . . . . Actions | -11 -10 -10 -9 --------- Run | Scr Mat Min Mat Total 626 | 56 108 368 94 Wait 22 | . . 15 7 Move 540 | 45 96 318 81 Hop 1 | . . 1 . Pick Up 6 | 2 3 1 . Fast Attach 14 | 4 3 5 2 Attach 6 | . 1 5 . Detach 9 | . 2 5 2 Swap . | . . . . Drop 4 | . 2 1 1 Fire 24 | 5 1 17 1 Melee . | . . . . Ram . | . . . . Kick . | . . . . Crush . | . . . . Escape Stasis . | . . . . Rewire . | . . . . Trap . | . . . . Miscellaneous . | . . . . Route ------- -11/Scrapyard -10/Materials -10/Mines -9/Materials History --------- Turn | Location | Event 10 | -11/Scrapyard | Discovered new exit (range 15) 42 | -11/Scrapyard | Entered Materials 95 | -10/Materials | Discovered new exit (range 9) 102 | -10/Materials | Entered Mines 166 | -10/Mines | Received a Mining Laser from a helpful Derelict 303 | -10/Mines | Build established: Mutant 402 | -10/Mines | Discovered new exit (range 12) 408 | -10/Mines | Lost 4 parts (2n2w) 413 | -10/Mines | Entered Materials 413 | -9/Materials | Evolved 2 slots: Utility x2 501 | -9/Materials | Self-destructed Last Messages --------------- 00390_ Acquired Lgt. Angular Momentum Engine. 00395_ Acquired Wheel. 00397_ Acquired 22 matter. 00398_ Acquired Wheel. 00400_ Acquired 27 matter. 00402_ EXIT=FOUND PARAMETERS=UTILITY_2 LOCATION=UNKNOWN GOAL=ESCAPE 00424_ Acquired Lrg. Storage Unit. 00451_ Dropped Ion Engine. 00453_ Acquired Prototype Engine. 00453_ Identified Hvy. Ion Engine. 00490_ K-01 Serf collects debris. 00492_ Connecting with Terminal... 00492_ Current location identified: Materials 00492_ ALERT: Suspicious activity at Terminal M011. Dispatching Investigation squad. 00494_ K-01 Serf collects debris. 00499_ Mining Laser destroyed. Map ----- +----------------------------------------------------+ | ?????????????????????????????????????????????????? | | ?????????????????????????????????????????????????? | | ?????????????????????????????????????????????????? | | ?????????????????????????????????????????????????? | | ?????????????????????????????????????????????????? | | ?????????????????????????????????????????????????? | | ?????????????????????????????????????????????????? | | ?????????????????????????????????????????????????? | | ?????????????????????????????????????????????????? | | ?????????????????????????????????????????????????? | | ?????????????????????????? ??????????????????????? | | ?????????????????????????? #?????????????????????? | | ?????????????????????????? #?????????????????????? | | ???????????????????????### ###???????????????????? | | ???????????????????????# #???????????????????? | | ???????????????????????# #???????????????????? | | ???????????????????????# #???????????????????? | | ???????????????????????# #???????????????????? | | ???????????????????????# #???????????????????? | | ???????????????????????# #???????????????????? | | ???????????????######### #???????????????????? | | ???????????????# k ###########?????????? | | ???????????????# ?????????? | | ???????????????# == s s ????????? | | ???????????????# == sgg????????????? | | ???????????????# == @ #???????????????????? | | ???????????????# " ###??????????????????? | | ???????????????# """ ""#??????????????????? | | ???????????????# "" ""#??????????????????? | | ???????????????# """ T"#??????????????????? | | ?????????????#"" "" ""#??????????????????? | | ?????????????#"" """ ""#??????????????????? | | ?????????????#"T """ ;##############??????? | | ??????????????"" """ # * #??????? | | ??????????????"" " # #??????? | | ??????????????## # """ """ """ #??????? | | ???????????????# # """ """ """ #??????? | | ???????????????# """ # """ """ """ #??????? | | ???????????????# """ # #??????? | | ???????????????? R" #######+###########??? | | ???????????????? """ #??? | | ???????????????? #??? | | ????????????????? #??? | | ????????????????? #####################+######? | | ????????????????????????????????????# #? | | ????????????????????????????????????# #? | | ????????????????????????????????????# #? | | ????????????????????????????????????# "" """ #? | | ????????????????????????????????????# S"" """ #? | | ????????????????????????????????????# "" """ #? | +----------------------------------------------------+ Best States ------------- Heat Dissipation 28 Energy Generation 18 Energy Capacity 280 Matter Stores 300 Matter Capacity 300 Sight Range 16 Terrain Scan Density 10 Evasion (%) 62 Targeting Accuracy 5 Item Schematics ----------------- None Robot Schematics ------------------ None Fabricated ------------ Nothing Alien Tech Used ----------------- None Achievements -------------- None Challenges ------------ None Game ------ Seed SpikedThunderPurifier Manual? 0 Play Time 00:07:28 Cumulative 110.8 hours Start 2021.03.07 @ 11:13:07 End 2021.03.07 @ 11:20:55 Sessions 1 Manual Loads 0 Difficulty Rogue Special Mode None Game No. 85 Rogue 85 Adventurer 0 Explorer 0 Win Type - Total 1 Types 1/0/0/0/0/0/0/0/0 Lore% 40 Gallery% 57 Achievement% 45 Wizard Run 0 Options --------- ASCII 0 Keyboard 0 Movement Numpad Keybinds 0 Fullscreen 0 Font 16/SmallcapsGlow Map View 76x50 Tactical HUD 1 Map Filters NONE Filters NONE Steam 1 RUN: 23d96f4f-10b5-4645-bc8f-8d26e49ed83e